lending/lending_fUSD_20250406
["ID","MTS","AMOUNT","RATE_DAILY","PERIOD"]
[357270728,1743970958632,-500.0,0.00052054,120]
[357270729,1743970958664,-500.0,0.00052054,120]
[357270730,1743970958695,-500.0,0.00052054,120]
[357270731,1743970958727,-500.0,0.00052054,120]
[357270732,1743970958756,-505.44765997,0.00052054,120]
[357270733,1743970958787,-507.0869877,0.00052054,120]
[357270734,1743970958818,-500.0,0.00052054,120]
[357270735,1743970958971,-500.0,0.00052054,120]
[357270736,1743970959004,-500.0,0.00052054,120]
[357270737,1743970959036,-500.0,0.00052054,120]
[357270738,1743970959071,-510.46082482,0.00052054,120]
[357270739,1743970959103,-500.0,0.00052054,120]
[357270740,1743970959135,-500.0,0.00052054,120]
[357270741,1743970959170,-700.23,0.00052054,120]
[357270742,1743970959204,-500.0,0.00052054,120]
[357270743,1743970959238,-500.0,0.00052054,120]
[357270744,1743970959272,-742.48,0.00052054,120]
[357270745,1743970959305,-500.0,0.00052054,120]
[357270746,1743970959338,-500.0,0.00052054,120]
[357270747,1743970959371,-500.0,0.00052054,120]
[357270748,1743970959403,-500.0,0.00052054,120]
[357270749,1743970959434,-507.0121185,0.00052054,120]
[357270750,1743970959466,-500.0,0.00052054,120]
[357270751,1743970959498,-500.0,0.00052054,120]
[357270752,1743970959529,-552.55401708,0.00052054,120]
[357270753,1743970959563,-500.0,0.00052054,120]
[357270754,1743970959594,-506.04726109,0.00052054,120]
[357270755,1743970959627,-500.0,0.00052054,120]
[357270756,1743970959660,-500.0,0.00052054,120]
[357270757,1743970959692,-500.0,0.00052054,120]
[357270758,1743970959724,-153.17165795,0.00052054,120]
[357270759,1743970959756,-500.0,0.00052054,120]
[357270760,1743970959788,-500.0,0.00052054,120]
[357270761,1743970959819,-371.09688829,0.00052054,120]
[357270762,1743970959850,-500.0,0.00052054,120]
[357270763,1743970959882,-500.0,0.00052054,120]
[357270764,1743970959914,-504.53741448,0.00052054,120]
[357270765,1743970959946,-518.69500196,0.00052054,120]
[357270766,1743970959979,-500.0,0.00052054,120]
[357270767,1743970960012,-500.0,0.00052054,120]
[357270768,1743970960044,-505.67513393,0.00052054,120]
[357270769,1743970960077,-500.0,0.00052054,120]
[357270770,1743970960110,-500.0,0.00052054,120]
[357270771,1743970960142,-500.0,0.00052054,120]
[357270772,1743970960173,-506.91841721,0.00052054,120]
[357270773,1743970960205,-500.0,0.00052054,120]
[357270774,1743970960238,-500.0,0.00052054,120]
[357270775,1743970960270,-500.0,0.00052054,120]
[357270776,1743970960301,-500.0,0.00052054,120]
[357270777,1743970960333,-500.0,0.00052054,120]
[357270778,1743970960366,-500.0,0.00052054,120]
[357270779,1743970960399,-500.0,0.00052054,120]
[357270780,1743970960434,-500.0,0.00052054,120]
[357270781,1743970960467,-500.0,0.00052054,120]
[357270782,1743970960499,-500.0,0.00052054,120]
[357270783,1743970960532,-2723.45,0.00052054,120]
[357270784,1743970960564,-500.0,0.00052054,120]
[357270785,1743970960596,-500.0,0.00052054,120]
[357270786,1743970960628,-512.42584032,0.00052054,120]
[357270787,1743970960662,-500.0,0.00052054,120]
[357270788,1743970960694,-504.56163586,0.00052054,120]
[357270789,1743970960727,-500.0,0.00052054,120]
[357270790,1743970960758,-500.0,0.00052054,120]
[357270791,1743970960789,-500.0,0.00052054,120]
[357270792,1743970960821,-515.63,0.00052054,120]
[357270793,1743970960852,-569.06034959,0.00052054,120]
[357270794,1743970960885,-500.0,0.00052054,120]
[357270795,1743970960915,-532.44308652,0.00052054,120]
[357270796,1743970960946,-508.63151282,0.00052054,120]
[357270797,1743970960978,-500.0,0.00052054,120]
[357270798,1743970961009,-500.0,0.00052054,120]
[357270799,1743970961042,-500.0,0.00052054,120]
[357270800,1743970961074,-519.65467701,0.00052054,120]
[357270801,1743970961107,-500.0,0.00052054,120]
[357270802,1743970961141,-500.0,0.00052054,120]
[357270803,1743970961173,-500.0,0.00052054,120]
[357270804,1743970961205,-192.92,0.00052054,120]
[357270805,1743970961238,-534.50195626,0.00052054,120]
[357270806,1743970961389,-513.4868999,0.00052054,120]
[357270807,1743970961426,-500.0,0.00052054,120]
[357270808,1743970961460,-702.65,0.00052054,120]
[357270809,1743970961493,-500.0,0.00052054,120]
[357270810,1743970961526,-500.0,0.00052054,120]
[357270811,1743970961557,-504.22369574,0.00052054,120]
[357270812,1743970961590,-500.0,0.00052054,120]
[357270813,1743970961622,-500.0,0.00052054,120]
[357270814,1743970961655,-500.0,0.00052054,120]
[357270815,1743970961689,-500.0,0.00052054,120]
[357270816,1743970961725,-500.0,0.00052054,120]
[357270817,1743970961760,-500.0,0.00052054,120]
[357270818,1743970961797,-500.0,0.00052054,120]
[357270819,1743970961830,-500.0,0.00052054,120]
[357270820,1743970961864,-500.0,0.00052054,120]
[357270821,1743970961898,-500.0,0.00052054,120]
[357270822,1743970961930,-500.0,0.00052054,120]
[357270823,1743970961962,-500.0,0.00052054,120]
[357270824,1743970961993,-505.28779927,0.00052054,120]
[357270825,1743970962024,-503.37281933,0.00052054,120]
[357270826,1743970962056,-500.0,0.00052054,120]
[357270827,1743970962091,-500.0,0.00052054,120]
[357270828,1743970962124,-500.0,0.00052054,120]
[357270829,1743970962159,-516.60692818,0.00052054,120]
[357270830,1743970962194,-525.66,0.00052054,120]
[357270831,1743970962228,-500.0,0.00052054,120]
[357270832,1743970962260,-500.0,0.00052054,120]
[357270833,1743970962294,-500.0,0.00052054,120]
[357270834,1743970962327,-500.0,0.00052054,120]
[357270835,1743970962361,-500.0,0.00052054,120]
[357270836,1743970962395,-192.86138297,0.00052054,120]
[357270837,1743970962429,-500.0,0.00052054,120]
[357270838,1743970962463,-571.3540049,0.00052054,120]
[357270839,1743970962496,-500.0,0.00052054,30]
[357270840,1743970962530,-500.0,0.00052054,120]
[357270841,1743970962564,-1000.0,0.00052054,120]
[357270842,1743970962598,-502.91037115,0.00052054,120]
[357270843,1743970962631,-500.0,0.00052054,120]
[357270844,1743970962663,-500.0,0.00052054,120]
[357270845,1743970962696,-500.0,0.00052054,120]
[357270846,1743970962729,-502.93071308,0.00052054,120]
[357270847,1743970962760,-500.0,0.00052054,120]
[357270848,1743970962792,-500.0,0.00052054,120]
[357270849,1743970962824,-500.0,0.00052054,120]
[357270850,1743970962856,-762.64,0.00052054,120]
[357270851,1743970962887,-500.0,0.00052054,120]
[357270852,1743970962917,-500.0,0.00052054,120]
[357270853,1743970962948,-500.0,0.00052054,120]
[357270854,1743970962980,-500.0,0.00052054,120]
[357270855,1743970963011,-509.15745453,0.00052054,120]
[357270856,1743970963043,-500.0,0.00052054,120]
[357270857,1743970963076,-500.0,0.00052054,120]
[357270858,1743970963111,-500.0,0.00052054,120]
[357270859,1743970963148,-500.0,0.00052054,120]
[357270860,1743970963182,-500.0,0.00052054,120]
[357270861,1743970963216,-500.0,0.00052054,120]
[357270862,1743970963249,-500.0,0.00052054,120]
[357270863,1743970963282,-500.0,0.00052054,120]
[357270864,1743970963314,-500.0,0.00052054,120]
[357270865,1743970963348,-176.87221571,0.00052054,120]
[357270866,1743970963381,-500.0,0.00052054,120]
[357270867,1743970963414,-500.0,0.00052054,120]
[357270868,1743970963447,-500.0,0.00052054,120]
[357270869,1743970963481,-500.0,0.00052054,120]
[357270870,1743970963515,-500.0,0.00052054,120]
[357270871,1743970963548,-500.0,0.00052054,120]
[357270872,1743970963582,-500.0,0.00052054,120]
[357270873,1743970963614,-500.0,0.00052054,120]
[357270874,1743970963647,-1085.28,0.00052054,120]
[357270875,1743970963798,-990.53,0.00052054,120]
[357270876,1743970963832,-541.22035359,0.00052054,120]
[357270877,1743970963867,-500.0,0.00052054,120]
[357270878,1743970963902,-500.0,0.00052054,120]
[357270879,1743970963936,-500.0,0.00052054,120]
[357270880,1743970963972,-500.0,0.00052054,120]
[357270881,1743970964010,-500.0,0.00052054,120]
[357270882,1743970964049,-500.0,0.00052054,120]
[357270883,1743970964091,-508.82158095,0.00052054,120]
[357270884,1743970964133,-500.0,0.00052054,120]
[357270885,1743970964172,-335.96414195,0.00052055,60]
[357270886,1743970964210,-199.99,0.00052055,30]
[357270887,1743970964249,-152.48,0.00052266,120]
[357270888,1743970964286,-508.543596,0.000523,120]
[357270889,1743970964326,-318.420189,0.000523,120]
[357270890,1743970964362,-1137.80524169,0.00052356,120]
[357270891,1743970964398,-150.0,0.00052375,120]
[357270892,1743970964433,-1032.84071883,0.000524,100]
[357270893,1743970964469,-166.37199011,0.0005243,120]
[357270894,1743970964503,-997.68334725,0.0005243,120]
[357270895,1743970964540,-1408.56704463,0.0005243,120]
[357270896,1743970964575,-2000.0,0.0005244,30]
[357270897,1743970964607,-150.0,0.00052479,120]
[357270898,1743970964640,-161.040704,0.00052498,120]
[357270899,1743970964672,-333.65,0.00052499,120]
[357270900,1743970964704,-137706.0,0.000525,120]
[357270901,1743970964734,-250.0,0.00052602,120]
[357270902,1743970964764,-250.0,0.00052602,120]
[357270903,1743970964795,-1760.479773,0.00052602,120]
[357270904,1743970964829,-4233.847295,0.00052602,120]
[357270905,1743970964861,-175.865933,0.00052602,120]
[357270906,1743970964894,-585.80333934,0.00052602,120]
[357270907,1743970964925,-500.0,0.00052602,120]
[357270908,1743970964957,-555.75946216,0.00052602,120]
[357270909,1743970964988,-500.0,0.00052602,120]
[357270910,1743970965020,-204.70649866,0.00052602,120]
[357270911,1743970965053,-531.8274778,0.00052602,120]
[357270912,1743970965090,-500.0,0.00052602,120]
[357270913,1743970965125,-500.0,0.00052602,120]
[357270914,1743970965158,-500.0,0.00052602,120]
[357270915,1743970965191,-499.99937107,0.00052602,120]
[357270916,1743970965223,-508.91809651,0.00052602,120]
[357270917,1743970965256,-521.1981279,0.00052602,120]
[357270918,1743970965288,-500.0,0.00052602,120]
[357270919,1743970965323,-513.32341725,0.00052602,120]
[357270920,1743970965357,-509.25592802,0.00052602,120]
[357270921,1743970965391,-521.86536171,0.00052602,120]
[357270922,1743970965424,-500.0,0.00052602,120]
[357270923,1743970965456,-512.45318153,0.00052602,120]
[357270924,1743970965488,-500.0,0.00052602,120]
[357270925,1743970965521,-500.0,0.00052602,120]
[357270926,1743970965554,-502.53155042,0.00052602,120]
[357270927,1743970965585,-500.0,0.00052602,120]
[357270928,1743970965618,-501.81808249,0.00052602,120]
[357270929,1743970965650,-500.0,0.00052602,120]
[357270930,1743970965683,-502.60902142,0.00052602,120]
[357270931,1743970965716,-217.02953859,0.00052602,120]
[357270932,1743970965749,-497.42170741,0.00052602,120]
[357270933,1743970965780,-553.26971883,0.00052602,120]
[357270934,1743970965812,-511.62202367,0.00052602,120]
[357270935,1743970965845,-500.0,0.00052602,60]
[357270936,1743970965877,-503.76354203,0.00052602,120]
[357270937,1743970965909,-500.0,0.00052602,120]
[357270938,1743970965939,-523.02899961,0.00052602,120]
[357270939,1743970965970,-500.0,0.00052602,120]
[357270940,1743970966000,-506.0194163,0.00052602,120]
[357270941,1743970966147,-500.0,0.00052602,120]
[357270942,1743970966184,-500.0,0.00052602,120]
[357270943,1743970966219,-500.0,0.00052602,120]
[357270944,1743970966255,-500.0,0.00052602,120]
[357270945,1743970966290,-500.0,0.00052602,120]
[357270946,1743970966323,-500.0,0.00052602,120]
[357270947,1743970966357,-500.0,0.00052602,120]
[357270948,1743970966392,-504.07588294,0.00052602,120]
[357270949,1743970966426,-500.0,0.00052602,120]
[357270950,1743970966459,-500.0,0.00052602,120]
[357270951,1743970966493,-500.0,0.00052602,120]
[357270952,1743970966526,-500.0,0.00052602,120]
[357270953,1743970966559,-541.62091881,0.00052602,120]
[357270954,1743970966595,-500.0,0.00052602,120]
[357270955,1743970966627,-500.0,0.00052602,120]
[357270956,1743970966659,-500.0,0.00052602,120]
[357270957,1743970966691,-220.23150375,0.00052602,120]
[357270958,1743970966726,-500.0,0.00052602,120]
[357270959,1743970966760,-500.0,0.00052602,120]
[357270960,1743970966792,-500.0,0.00052602,120]
[357270961,1743970966827,-500.0,0.00052602,120]
[357270962,1743970966859,-500.0,0.00052602,120]
[357270963,1743970966892,-500.0,0.00052602,120]
[357270964,1743970966924,-500.0,0.00052602,120]
[357270965,1743970966957,-500.0,0.00052602,120]
[357270966,1743970966989,-510.99561213,0.00052602,120]
[357270967,1743970967022,-500.0,0.00052602,120]
[357270968,1743970967056,-500.0,0.00052602,120]
[357270969,1743970967093,-516.55868243,0.00052602,120]
[357270970,1743970967128,-1043.57303939,0.00052602,120]
[357270971,1743970967163,-500.0,0.00052602,120]
[357270972,1743970967196,-500.0,0.00052602,120]
[357270973,1743970967231,-214.43365566,0.00052602,120]
[357270974,1743970967266,-500.0,0.00052602,120]
[357270975,1743970967301,-500.0,0.00052602,120]
[357270976,1743970967335,-509.77391704,0.00052602,120]
[357270977,1743970967371,-500.0,0.00052602,120]
[357270978,1743970967406,-538.05894198,0.00052602,120]
[357270979,1743970967440,-516.40792669,0.00052602,120]
[357270980,1743970967473,-500.0,0.00052602,120]
[357270981,1743970967506,-500.0,0.00052602,120]
[357270982,1743970967538,-558.98256607,0.00052602,120]
[357270983,1743970967574,-500.0,0.00052602,120]
[357270984,1743970967606,-500.0,0.00052602,120]
[357270985,1743970967639,-500.0,0.00052602,120]
[357270986,1743970967671,-515.55277337,0.00052602,120]
[357270987,1743970967703,-500.0,0.00052602,120]
[357270988,1743970967735,-500.0,0.00052602,120]
[357270989,1743970967766,-500.0,0.00052602,120]
[357270990,1743970967798,-500.0,0.00052602,120]
[357270991,1743970967830,-500.0,0.00052602,120]
[357270992,1743970967863,-506.60178913,0.00052602,120]
[357270993,1743970967896,-500.0,0.00052602,120]
[357270994,1743970967930,-500.0,0.00052602,120]
[357270995,1743970967964,-501.40864633,0.00052602,120]
[357270996,1743970967998,-500.0,0.00052602,120]
[357270997,1743970968032,-500.0,0.00052602,120]
[357270998,1743970968064,-500.0,0.00052602,120]
[357270999,1743970968101,-500.0,0.00052602,120]
[357271000,1743970968135,-500.0,0.00052602,120]
[357271001,1743970968169,-500.0,0.00052602,120]
[357271002,1743970968200,-500.0,0.00052602,120]
[357271003,1743970968232,-510.33065925,0.00052602,120]
[357271004,1743970968265,-500.0,0.00052602,120]
[357271005,1743970968405,-500.0,0.00052602,120]
[357271006,1743970968441,-535.91701187,0.00052602,120]
[357271007,1743970968475,-553.19929153,0.00052602,120]
[357271008,1743970968508,-500.0,0.00052602,120]
[357271009,1743970968540,-526.07329476,0.00052602,120]
[357271010,1743970968573,-528.21719284,0.00052602,120]
[357271011,1743970968607,-500.0,0.00052602,120]
[357271012,1743970968640,-522.35699421,0.00052602,120]
[357271013,1743970968672,-500.0,0.00052602,120]
[357271014,1743970968703,-500.0,0.00052602,120]
[357271015,1743970968736,-500.0,0.00052602,120]
[357271016,1743970968768,-500.0,0.00052602,120]
[357271017,1743970968800,-505.11154492,0.00052602,120]
[357271018,1743970968831,-500.0,0.00052602,120]
[357271019,1743970968863,-505.45833848,0.00052602,120]
[357271020,1743970968894,-523.00716821,0.00052602,120]
[357271021,1743970968926,-536.09473871,0.00052602,120]
[357271022,1743970968957,-566.78136441,0.00052602,120]
[357271023,1743970968990,-500.0,0.00052602,120]
[357271024,1743970969022,-500.0,0.00052602,120]
[357271025,1743970969054,-500.0,0.00052602,120]
[357271026,1743970969092,-533.62166125,0.00052602,120]
[357271027,1743970969125,-536.65206887,0.00052602,120]
[357271028,1743970969158,-500.0,0.00052602,120]
[357271029,1743970969190,-298.11864497,0.00052602,120]
[357271030,1743970969224,-500.0,0.00052602,120]
[357271031,1743970969261,-500.0,0.00052602,120]
[357271032,1743970969294,-500.0,0.00052602,120]
[357271033,1743970969329,-522.85156365,0.00052602,120]
[357271034,1743970969362,-555.55394716,0.00052602,120]
[357271035,1743970969396,-500.0,0.00052602,120]
[357271036,1743970969429,-500.0,0.00052602,30]
[357271037,1743970969462,-500.0,0.00052602,120]
[357271038,1743970969496,-528.6120865,0.00052602,120]
[357271039,1743970969530,-500.0,0.00052602,120]
[357271040,1743970969567,-500.0,0.00052602,120]
[357271041,1743970969602,-506.99077691,0.00052602,120]
[357271042,1743970969637,-500.0,0.00052602,120]
[357271043,1743970969672,-609.06197429,0.00052602,120]
[357271044,1743970969711,-500.0,0.00052602,120]
[357271045,1743970969746,-500.0,0.00052602,120]
[357271046,1743970969779,-500.0,0.00052602,120]
[357271047,1743970969811,-500.0,0.00052602,120]
[357271048,1743970969842,-500.0,0.00052602,120]
[357271049,1743970969874,-576.66811233,0.00052602,120]
[357271050,1743970969906,-500.0,0.00052602,120]
[357271051,1743970969938,-511.54744142,0.00052602,120]
[357271052,1743970969971,-506.41380513,0.00052602,120]
[357271053,1743970970003,-500.0,0.00052602,120]
[357271054,1743970970036,-500.0,0.00052602,120]
[357271055,1743970970068,-500.0,0.00052602,120]
[357271056,1743970970105,-500.0,0.00052602,120]
[357271057,1743970970140,-503.2093854,0.00052602,120]
[357271058,1743970970179,-500.0,0.00052602,120]
[357271059,1743970970215,-500.0,0.00052602,120]
[357271060,1743970970250,-580.11898407,0.00052602,120]
[357271061,1743970970285,-669.86,0.00052602,120]
[357271062,1743970970322,-500.0,0.00052602,120]
[357271063,1743970970365,-500.0,0.00052602,120]
[357271064,1743970970401,-529.201253,0.00052602,120]
[357271065,1743970970437,-500.0,0.00052602,120]
[357271066,1743970970474,-500.0,0.00052602,120]
[357271067,1743970970613,-336.12935798,0.00052602,120]
[357271068,1743970970648,-500.0,0.00052602,120]
[357271069,1743970970682,-500.0,0.00052602,120]
[357271070,1743970970714,-166.351477,0.00052602,120]
[357271071,1743970970747,-500.0,0.00052602,120]
[357271072,1743970970779,-588.45316209,0.00052602,120]
[357271073,1743970970812,-500.0,0.00052602,120]
[357271074,1743970970846,-500.0,0.00052602,120]
[357271075,1743970970878,-500.0,0.00052602,120]
[357271076,1743970970910,-533.61592887,0.00052602,120]
[357271077,1743970970942,-423.68147141,0.00052602,120]
[357271078,1743970970973,-500.0,0.00052602,120]
[357271079,1743970971005,-500.0,0.00052602,120]
[357271080,1743970971037,-507.96125093,0.00052602,120]
[357271081,1743970971069,-500.0,0.00052602,120]
[357271082,1743970971106,-506.7213438,0.00052602,120]
[357271083,1743970971141,-496.80274989,0.00052602,120]
[357271084,1743970971177,-500.0,0.00052602,120]
[357271085,1743970971211,-573.01446108,0.00052602,120]
[357271086,1743970971246,-522.22288472,0.00052602,120]
[357271087,1743970971282,-151.0,0.00052602,120]
[357271088,1743970971317,-500.0,0.00052602,120]
[357271089,1743970971353,-502.76925708,0.00052602,120]
[357271090,1743970971388,-500.0,0.00052602,120]
[357271091,1743970971424,-500.0,0.00052602,120]
[357271092,1743970971462,-500.0,0.00052602,120]
[357271093,1743970971498,-263.84463405,0.00052602,120]
[357271094,1743970971534,-500.0,0.00052602,120]
[357271095,1743970971571,-533.68383538,0.00052602,120]
[357271096,1743970971607,-500.0,0.00052602,120]
[357271097,1743970971642,-500.0,0.00052602,120]
[357271098,1743970971676,-849.452794,0.00052602,120]
[357271099,1743970971709,-604.16,0.00052602,120]
[357271100,1743970971743,-594.37945815,0.00052602,120]
[357271101,1743970971773,-620.75373933,0.00052602,30]
[357271102,1743970971805,-500.0,0.00052602,120]
[357271103,1743970971836,-500.0,0.00052602,120]
[357271104,1743970971869,-500.0,0.00052602,120]
[357271105,1743970971900,-504.95,0.00052602,30]
[357271106,1743970971930,-500.0,0.00052602,120]
[357271107,1743970971960,-500.0,0.00052602,120]
[357271108,1743970971992,-500.0,0.00052602,120]
[357271109,1743970972022,-500.0,0.00052602,120]
[357271110,1743970972053,-500.0,0.00052602,120]
[357271111,1743970972086,-500.0,0.00052602,120]
[357271112,1743970972120,-500.0,0.00052602,120]
[357271113,1743970972156,-500.0,0.00052602,120]
[357271114,1743970972190,-607.18,0.00052602,120]
[357271115,1743970972222,-500.0,0.00052602,120]
[357271116,1743970972256,-500.0,0.00052602,120]
[357271117,1743970972287,-500.0,0.00052602,120]
[357271118,1743970972319,-500.0,0.00052602,120]
[357271119,1743970972355,-500.0,0.00052602,120]
[357271120,1743970972390,-500.0,0.00052602,120]
[357271121,1743970972425,-761.26,0.00052602,120]
[357271122,1743970972458,-500.0,0.00052602,120]
[357271123,1743970972490,-500.97833365,0.00052602,120]
[357271124,1743970972524,-500.0,0.00052602,120]
[357271125,1743970972556,-500.0,0.00052602,120]
[357271126,1743970972588,-956.23,0.00052602,120]
[357271127,1743970972743,-500.0,0.00052602,120]
[357271128,1743970972776,-500.0,0.00052602,120]
[357271129,1743970972807,-500.0,0.00052602,120]
[357271130,1743970972839,-500.0,0.00052602,120]
[357271131,1743970972871,-500.0,0.00052602,120]
[357271132,1743970972903,-500.0,0.00052602,120]
[357271133,1743970972935,-500.0,0.00052602,120]
[357271134,1743970972968,-500.0,0.00052602,120]
[357271135,1743970973001,-500.0,0.00052602,120]
[357271136,1743970973033,-4330.95,0.00052602,120]
[357271137,1743970973064,-500.0,0.00052602,120]
[357271138,1743970973100,-500.0,0.00052602,120]
[357271139,1743970973132,-500.0,0.00052602,120]
[357271140,1743970973164,-537.30875493,0.00052602,120]
[357271141,1743970973197,-500.0,0.00052602,120]
[357271142,1743970973231,-500.0,0.00052602,120]
[357271143,1743970973264,-500.0,0.00052602,120]
[357271144,1743970973296,-500.0,0.00052602,120]
[357271145,1743970973328,-500.0,0.00052602,120]
[357271146,1743970973362,-643.26,0.00052602,120]
[357271147,1743970973394,-500.0,0.00052602,120]
[357271148,1743970973426,-500.0,0.00052602,120]
[357271149,1743970973458,-500.0,0.00052602,120]
[357271150,1743970973489,-500.0,0.00052602,120]
[357271151,1743970973520,-515.56706733,0.00052602,120]
[357271152,1743970973552,-500.0,0.00052602,120]
[357271153,1743970973584,-518.31010861,0.00052602,120]
[357271154,1743970973616,-500.0,0.00052602,120]
[357271155,1743970973647,-500.0,0.00052602,120]
[357271156,1743970973679,-500.0,0.00052602,120]
[357271157,1743970973711,-500.0,0.00052602,120]
[357271158,1743970973742,-500.0,0.00052602,120]
[357271159,1743970973773,-504.9064731,0.00052602,120]
[357271160,1743970973805,-500.0,0.00052602,120]
[357271161,1743970973835,-500.0,0.00052602,120]
[357271162,1743970973871,-500.0,0.00052602,120]
[357271163,1743970973903,-500.0,0.00052602,120]
[357271164,1743970973936,-500.0,0.00052602,120]
[357271165,1743970973968,-500.0,0.00052602,120]
[357271166,1743970974001,-500.0,0.00052602,120]
[357271167,1743970974034,-690.23,0.00052602,120]
[357271168,1743970974067,-359.5,0.00052602,120]
[357271169,1743970974106,-500.0,0.00052602,120]
[357271170,1743970974143,-500.0,0.00052602,120]
[357271171,1743970974181,-500.0,0.00052602,120]
[357271172,1743970974216,-500.0,0.00052602,120]
[357271173,1743970974252,-547.8,0.00052602,120]
[357271174,1743970974285,-500.0,0.00052602,120]
[357271175,1743970974319,-500.0,0.00052602,120]
[357271176,1743970974355,-767.93,0.00052602,120]
[357271177,1743970974391,-500.0,0.00052602,120]
[357271178,1743970974426,-500.0,0.00052602,120]
[357271179,1743970974461,-500.0,0.00052602,120]
[357271180,1743970974496,-522.85724222,0.00052602,120]
[357271181,1743970974529,-500.0,0.00052602,120]
[357271182,1743970974564,-500.0,0.00052602,120]
[357271183,1743970974598,-500.0,0.00052602,120]
[357271184,1743970974631,-500.0,0.00052602,120]
[357271185,1743970974799,-500.0,0.00052602,120]
[357271186,1743970974834,-500.0,0.00052602,120]
[357271187,1743970974870,-500.0,0.00052602,120]
[357271188,1743970974905,-500.0,0.00052602,120]
[357271189,1743970974940,-707.23,0.00052602,120]
[357271190,1743970974974,-500.0,0.00052602,120]
[357271191,1743970975009,-500.0,0.00052602,120]
[357271192,1743970975042,-500.0,0.00052602,120]
[357271193,1743970975077,-500.0,0.00052602,120]
[357271194,1743970975110,-500.0,0.00052602,120]
[357271195,1743970975145,-500.0,0.00052602,120]
[357271196,1743970975180,-500.0,0.00052602,120]
[357271197,1743970975212,-500.0,0.00052602,120]
[357271198,1743970975245,-500.0,0.00052602,120]
[357271199,1743970975279,-620.05,0.00052602,120]
[357271200,1743970975314,-510.96134527,0.00052602,120]
[357271201,1743970975349,-500.0,0.00052602,120]
[357271202,1743970975384,-530.79372836,0.00052602,120]
[357271203,1743970975419,-500.0,0.00052602,120]
[357271204,1743970975453,-500.0,0.00052602,120]
[357271205,1743970975486,-521.30475809,0.00052602,120]
[357271206,1743970975519,-500.0,0.00052602,120]
[357271207,1743970975551,-500.0,0.00052602,120]
[357271208,1743970975585,-509.25,0.00052602,120]
[357271209,1743970975616,-500.0,0.00052602,120]
[357271210,1743970975650,-500.0,0.00052602,120]
[357271211,1743970975682,-500.0,0.00052602,120]
[357271212,1743970975715,-500.0,0.00052602,120]
[357271213,1743970975747,-500.0,0.00052602,120]
[357271214,1743970975780,-700.74,0.00052602,120]
[357271215,1743970975811,-500.0,0.00052602,120]
[357271216,1743970975844,-500.0,0.00052602,120]
[357271217,1743970975877,-500.0,0.00052602,120]
[357271218,1743970975909,-500.0,0.00052602,120]
[357271219,1743970975942,-1221.83,0.00052602,120]
[357271220,1743970975976,-500.0,0.00052602,120]
[357271221,1743970976008,-500.0,0.00052602,120]
[357271222,1743970976042,-500.0,0.00052602,120]
[357271223,1743970976079,-500.0,0.00052602,120]
[357271224,1743970976113,-500.0,0.00052602,120]
[357271225,1743970976147,-500.0,0.00052602,120]
[357271226,1743970976180,-500.0,0.00052602,120]
[357271227,1743970976213,-500.0,0.00052602,120]